bitfinex/quotes_BTCUSD_20250902
["timestamp","ask_amount","ask_price","bid_price","bid_amount"]
[1756829571364,0.87127542,111130.0,111120.0,0.001]
[1756829571569,1.21127542,111130.0,111120.0,0.15912]
[1756829572663,1.21127542,111130.0,111120.0,0.15908]
[1756829572870,1.23833032,111130.0,111120.0,0.15908]
[1756829573637,1.23833032,111130.0,111120.0,0.15904]
[1756829575603,1.00175675,111130.0,111120.0,0.15896]
[1756829576633,1.00175675,111130.0,111120.0,0.16097]
[1756829577461,1.00175675,111130.0,111120.0,0.15896]
[1756829578193,1.00175675,111130.0,111120.0,0.001]
[1756829578394,1.03205364,111130.0,111120.0,0.15868]
[1756829578649,1.45799609,111130.0,111120.0,0.001]
[1756829578819,1.03205364,111130.0,111120.0,0.15868]
[1756829579619,1.42407685,111130.0,111120.0,0.15868]
[1756829580131,1.39377996,111130.0,111120.0,0.15868]
[1756829580878,0.95260223,111130.0,111120.0,0.3406756]
[1756829581311,0.5436194,111130.0,111120.0,0.16069]
[1756829581486,0.5487594,111130.0,111120.0,0.15864]
[1756829581696,0.5487594,111130.0,111120.0,0.1586]
[1756829581914,0.5487594,111130.0,111120.0,0.001]
[1756829582119,0.97459756,111130.0,111120.0,0.001]
[1756829582326,1.00489445,111130.0,111120.0,0.001]
[1756829582730,1.00489445,111130.0,111120.0,0.1586]
[1756829583107,0.57905629,111130.0,111120.0,0.1576]
[1756829583308,0.97459756,111130.0,111120.0,0.1576]
[1756829583513,0.5487594,111130.0,111120.0,0.1576]
[1756829583752,0.5436194,111130.0,111120.0,0.15961]
[1756829584162,0.5487594,111130.0,111120.0,0.1576]
[1756829584568,0.1799856,111120.0,111110.0,0.25354687]
[1756829584759,0.1799856,111120.0,111110.0,0.25354811]
[1756829584967,0.1800018,111110.0,111100.0,0.10410213]
[1756829585184,0.1851418,111110.0,111100.0,0.06545]
[1756829585384,0.2036356,111120.0,111110.0,0.1800018]
[1756829585612,0.2087756,111120.0,111110.0,0.00201]
[1756829585816,0.2087756,111120.0,111110.0,0.15964]
[1756829586418,0.2087756,111120.0,111110.0,0.15764]
[1756829587201,0.2087756,111120.0,111110.0,0.3396518]
[1756829587385,0.2087756,111120.0,111110.0,0.15965]
[1756829588028,0.2036356,111120.0,111110.0,0.15965]
[1756829588582,0.2086956,111120.0,111110.0,0.15965]
[1756829588921,0.2086956,111120.0,111110.0,0.16065]
[1756829589333,0.2086956,111120.0,111110.0,0.15965]
[1756829589615,0.2086956,111120.0,111110.0,0.15964]
[1756829591499,0.55602579,111130.0,111110.0,0.34396182]
[1756829591643,0.55912579,111130.0,111110.0,0.3417118]
[1756829592272,0.55912579,111130.0,111120.0,0.1799856]
[1756829592481,0.1799856,111120.0,111110.0,0.3396418]
[1756829592675,0.1799856,111120.0,111110.0,0.1820018]
[1756829592879,0.1799856,111120.0,111110.0,0.3414318]
[1756829593153,0.1799856,111120.0,111110.0,0.3394318]
[1756829593361,0.1799856,111120.0,111110.0,0.3404318]
[1756829594143,0.55912579,111130.0,111110.0,0.3404318]
[1756829594294,0.55602579,111130.0,111110.0,0.3404318]
[1756829594500,0.1799856,111120.0,111110.0,0.3404318]
[1756829594935,0.1799856,111120.0,111110.0,0.00207]
[1756829595189,0.1799856,111120.0,111110.0,0.34376182]
[1756829595368,0.1799856,111120.0,111110.0,0.3432418]
[1756829596012,0.1799856,111120.0,111110.0,0.3415118]
[1756829598359,0.1799856,111120.0,111110.0,0.1840718]
[1756829598559,0.1850456,111120.0,111110.0,0.002]
[1756829598888,0.1850456,111120.0,111110.0,0.15916]
[1756829599078,0.1850456,111120.0,111110.0,0.16123]
[1756829600112,0.1850456,111120.0,111110.0,0.3412318]
[1756829600280,0.1799856,111120.0,111110.0,0.3412318]
[1756829600888,0.1850456,111120.0,111110.0,0.15916]
[1756829601096,0.2076456,111120.0,111110.0,0.15916]
[1756829601945,0.2076456,111120.0,111110.0,0.74802452]
[1756829602147,0.2025856,111120.0,111110.0,0.59293452]
[1756829602347,0.2025856,111120.0,111110.0,1.14997452]
[1756829602570,0.0226,111120.0,111110.0,1.24189051]
[1756829602798,0.02705792,111130.0,111120.0,0.1799856]
[1756829603001,0.20702732,111130.0,111120.0,1.25110685]
[1756829603198,0.20702732,111130.0,111120.0,1.24885703]
[1756829603406,0.1850294,111130.0,111120.0,0.24903599]
[1756829603610,0.1850294,111130.0,111120.0,0.68076431]
[1756829603808,0.1830694,111130.0,111120.0,0.83995431]
[1756829604013,0.1799694,111130.0,111120.0,0.83995431]
[1756829604826,0.1799694,111130.0,111120.0,0.09398599]
[1756829605097,0.1850294,111130.0,111120.0,0.83995431]
[1756829605306,0.1819294,111130.0,111120.0,0.83995431]
[1756829605508,0.1799694,111130.0,111120.0,0.84095431]
[1756829605945,0.1799694,111130.0,111120.0,1.24095431]
[1756829606484,0.1819294,111130.0,111120.0,1.24095431]
[1756829606665,0.1819294,111130.0,111120.0,1.24083431]
[1756829606897,0.1850294,111130.0,111120.0,1.24083431]
[1756829607083,0.1850294,111130.0,111120.0,0.83197159]
[1756829607293,0.1850294,111130.0,111120.0,1.24083431]
[1756829607494,0.1850294,111130.0,111120.0,0.49291599]
[1756829607709,0.61649212,111130.0,111120.0,0.558]
[1756829607912,0.61649212,111130.0,111120.0,0.001]
[1756829608125,0.61649212,111130.0,111120.0,0.158]
[1756829609044,0.2076294,111130.0,111120.0,0.158]
[1756829609224,0.2045294,111130.0,111120.0,0.57118254]
[1756829609404,0.2076294,111130.0,111120.0,0.56893272]
[1756829610765,0.2025694,111130.0,111120.0,0.56893272]
[1756829610948,0.2045294,111130.0,111120.0,0.56893272]
[1756829611354,0.2076294,111130.0,111120.0,0.56893272]
[1756829611561,0.2025694,111130.0,111120.0,0.56893272]
[1756829611763,0.2025694,111130.0,111120.0,1.24969703]
[1756829611926,0.2045294,111130.0,111120.0,0.49498599]
[1756829612129,0.2076294,111130.0,111120.0,0.09291599]
[1756829612374,0.2076294,111130.0,111120.0,0.24987599]
[1756829612581,0.2076294,111130.0,111120.0,0.65873871]
[1756829612827,0.2076294,111130.0,111120.0,1.05873871]
[1756829613255,0.61649212,111130.0,111120.0,0.55796]
[1756829613456,0.61649212,111130.0,111120.0,0.15796]
[1756829613748,0.61649212,111130.0,111120.0,0.001]
[1756829614355,0.61649212,111130.0,111120.0,0.15808]
[1756829615405,0.95649212,111130.0,111120.0,0.001]
[1756829615609,1.39565173,111130.0,111120.0,0.15796]
[1756829615816,0.98678901,111130.0,111120.0,0.15796]
[1756829616446,1.39565173,111130.0,111120.0,0.001]
[1756829616677,1.39565173,111130.0,111120.0,0.15796]
[1756829617094,1.39565173,111130.0,111120.0,0.001]
[1756829617299,1.64452772,111130.0,111120.0,0.001]
[1756829618245,0.1799856,111120.0,111110.0,0.15696]
[1756829618419,0.99978104,111120.0,111110.0,0.15696]
[1756829618618,1.02708104,111120.0,111110.0,0.15696]
[1756829619029,0.2093556,111120.0,111110.0,0.15696]
[1756829619185,1.02708104,111120.0,111110.0,0.15696]
[1756829619375,0.64527704,111120.0,111110.0,0.15696]
[1756829619626,0.23641432,111120.0,111110.0,0.15796]
[1756829619824,0.23134432,111120.0,111110.0,0.75113454]
[1756829619985,0.20704432,111120.0,111110.0,0.56888272]
[1756829620185,0.20704432,111120.0,111110.0,0.74888452]
[1756829620386,0.20704432,111120.0,111110.0,0.16002]
[1756829620592,0.20704432,111120.0,111110.0,0.57113274]
[1756829620799,0.20704432,111120.0,111110.0,0.56888272]
[1756829621001,0.20704432,111120.0,111110.0,0.16002]
[1756829621201,0.20704432,111120.0,111110.0,0.56888272]
[1756829621823,0.20704432,111120.0,111110.0,0.84080051]
[1756829622026,0.20704432,111120.0,111110.0,0.68384051]
[1756829622268,0.20704432,111120.0,111110.0,0.84084051]
[1756829622875,0.20704432,111120.0,111110.0,0.68384051]
[1756829623081,0.20704432,111120.0,111110.0,0.84084051]
[1756829623300,0.02705872,111120.0,111110.0,0.84257051]
[1756829623516,0.20704432,111120.0,111110.0,0.84257051]
[1756829623728,0.20704432,111120.0,111110.0,0.27497779]
[1756829623937,0.20704432,111120.0,111110.0,0.25197599]
[1756829623938,0.21211432,111120.0,111110.0,0.25197599]
[1756829624162,0.21211432,111120.0,111110.0,0.24991599]
[1756829624369,0.23641432,111120.0,111110.0,0.158]
[1756829624583,0.02705872,111120.0,111110.0,1.52063323]
[1756829624792,0.18293716,111150.0,111120.0,0.17996143]
[1756829625002,0.52500716,111150.0,111140.0,0.41092272]
[1756829625205,0.52200716,111150.0,111140.0,0.41092272]
[1756829625379,0.18200716,111150.0,111140.0,0.59087593]
[1756829625715,0.55205657,111150.0,111140.0,0.41092272]
[1756829625884,0.55205657,111150.0,111140.0,0.15902]
[1756829626102,0.55205657,111150.0,111140.0,0.16126941]
[1756829626292,0.55405657,111150.0,111140.0,0.16126941]
[1756829626790,0.55405657,111150.0,111140.0,0.15920941]
[1756829627221,0.57835657,111150.0,111140.0,0.15920941]
[1756829627440,0.57835657,111150.0,111140.0,0.00224941]
[1756829627441,0.98721929,111150.0,111140.0,0.00224941]
[1756829627651,0.57835657,111150.0,111140.0,0.00224941]
[1756829627859,0.57835657,111150.0,111130.0,0.73532539]
[1756829627860,0.17995321,111140.0,111130.0,0.73532539]
[1756829628079,0.17995321,111140.0,111130.0,0.89434539]
[1756829628294,0.17995321,111140.0,111130.0,0.49434539]
[1756829629217,0.57428657,111150.0,111130.0,0.92006495]
[1756829629426,0.17995321,111140.0,111130.0,0.49434539]
[1756829629962,0.20800262,111140.0,111130.0,0.50323727]
[1756829630163,0.20800262,111140.0,111130.0,0.15741599]
[1756829630373,0.21307262,111140.0,111130.0,0.31437599]
[1756829630572,0.21307262,111140.0,111130.0,0.49434539]
[1756829630789,0.20800262,111140.0,111130.0,0.49434539]
[1756829631949,0.20800262,111140.0,111130.0,0.50351718]
[1756829633337,0.02804941,111140.0,111130.0,0.92923674]
[1756829633478,0.02804941,111140.0,111130.0,0.50351718]
[1756829633722,0.20800262,111140.0,111130.0,0.50351718]
[1756829634581,0.21307262,111140.0,111130.0,0.71437599]
[1756829635346,0.20800262,111140.0,111130.0,0.89434539]
[1756829635959,0.20800262,111140.0,111130.0,0.73738539]
[1756829636162,0.21007262,111140.0,111130.0,0.89430539]
[1756829636397,0.20800262,111140.0,111130.0,0.89430539]
[1756829637391,0.02804941,111140.0,111130.0,1.32175495]
[1756829637615,0.001,111140.0,111130.0,1.84855799]
[1756829638562,0.001,111140.0,111130.0,2.04679799]
[1756829638997,0.001,111140.0,111130.0,1.88987799]
[1756829639228,0.001,111140.0,111130.0,2.04679799]
[1756829639899,0.001,111140.0,111130.0,1.88987799]
[1756829640100,0.001,111140.0,111130.0,2.04679799]
[1756829640371,0.001,111140.0,111130.0,1.38441421]
[1756829640558,0.001,111140.0,111130.0,2.04679799]
[1756829645265,0.00607,111140.0,111130.0,1.38264421]
[1756829645475,0.001,111140.0,111130.0,2.04502799]
[1756829646442,0.001,111140.0,111130.0,1.88814799]
[1756829646621,0.00307,111140.0,111130.0,2.04502799]
[1756829647051,0.00607,111140.0,111130.0,2.04502799]
[1756829647273,0.21032321,111140.0,111130.0,1.02279599]
[1756829647476,0.21032321,111140.0,111130.0,1.35964539]
[1756829647895,0.21032321,111140.0,111130.0,0.82455599]
[1756829648108,0.21032321,111140.0,111130.0,1.16140539]
[1756829648942,0.21032321,111140.0,111130.0,0.98143599]
[1756829649160,0.21032321,111140.0,111130.0,0.55535599]
[1756829649378,0.21032321,111140.0,111130.0,0.06344]
[1756829649584,0.2373735,111140.0,111130.0,0.22032]
[1756829651446,0.2373735,111140.0,111130.0,0.4002894]
[1756829651625,0.2373735,111140.0,111130.0,0.22032]
[1756829652218,0.2373735,111140.0,111130.0,0.06344]
[1756829652434,0.1799856,111120.0,111110.0,0.2434018]
[1756829652634,0.2098256,111120.0,111110.0,0.49219779]
[1756829652832,0.02984,111120.0,111110.0,0.49219779]
[1756829653034,0.2098256,111120.0,111110.0,0.49219779]
[1756829653280,0.2098256,111120.0,111110.0,0.90096022]
[1756829653675,0.2098256,111120.0,111110.0,0.31219599]
[1756829653873,0.2098256,111120.0,111110.0,0.0634]
[1756829654253,0.2098256,111120.0,111110.0,0.22028]
[1756829654451,0.2098256,111120.0,111110.0,0.0634]
[1756829654452,0.95858803,111120.0,111110.0,0.0634]
[1756829654663,0.180018,111100.0,111090.0,0.68340655]
[1756829654879,0.209858,111100.0,111090.0,0.93220254]
[1756829655286,0.02473,111100.0,111090.0,1.35219542]
[1756829655491,0.209858,111100.0,111090.0,0.93220254]
[1756829655879,0.209858,111100.0,111090.0,1.34096497]
[1756829656082,0.209858,111100.0,111090.0,1.34496497]
[1756829656297,0.209858,111100.0,111090.0,1.34709497]
[1756829656491,0.209858,111100.0,111090.0,1.34496497]
[1756829657004,0.209858,111100.0,111090.0,1.34709497]
[1756829657476,0.209858,111100.0,111090.0,1.34496497]
[1756829657901,0.209858,111100.0,111090.0,1.18808497]
[1756829658197,0.209858,111100.0,111090.0,1.34496497]
[1756829658423,0.02671,111100.0,111090.0,1.35632726]
[1756829658628,0.02473,111100.0,111090.0,1.35632726]
[1756829658832,0.204748,111100.0,111090.0,1.35632726]
[1756829659040,0.02984,111100.0,111090.0,1.35632726]
[1756829659221,0.02671,111100.0,111090.0,1.35632726]
[1756829659418,0.02473,111100.0,111090.0,1.35632726]
[1756829660003,0.02984,111100.0,111090.0,1.35632726]
[1756829660332,0.02671,111100.0,111090.0,1.19944726]
[1756829660710,0.02473,111100.0,111090.0,1.35632726]
[1756829660874,0.02473,111100.0,111090.0,1.19944726]
[1756829661082,0.02473,111100.0,111090.0,1.35632726]
[1756829662570,0.02671,111100.0,111090.0,0.94756483]
[1756829662711,0.02473,111100.0,111090.0,0.94756483]
[1756829662918,0.02473,111100.0,111090.0,1.35632726]
[1756829664539,0.0270587,111110.0,111100.0,0.180018]
[1756829664713,0.2070605,111110.0,111100.0,0.84195664]
[1756829664935,0.2070605,111110.0,111100.0,0.83970642]
[1756829665135,0.0270587,111110.0,111100.0,0.83970642]
[1756829665339,0.2090405,111110.0,111100.0,0.82881399]
[1756829665536,0.2121705,111110.0,111100.0,1.23970642]
[1756829666167,0.2121705,111110.0,111100.0,1.24270642]
[1756829666533,0.2121705,111110.0,111100.0,0.67493399]
[1756829666730,0.2121705,111110.0,111100.0,1.24057642]
[1756829667715,0.2121705,111110.0,111100.0,1.24053642]
[1756829668091,0.2121705,111110.0,111100.0,1.24266642]
[1756829668862,0.2369005,111110.0,111100.0,0.49491599]
[1756829669065,0.2369005,111110.0,111100.0,0.003]
[1756829669504,0.2369005,111110.0,111100.0,0.15984]
[1756829672578,0.2369005,111110.0,111100.0,0.003]
[1756829672770,0.2369005,111110.0,111100.0,0.15984]
[1756829673335,0.2337705,111110.0,111100.0,0.75300065]
[1756829673537,0.2369005,111110.0,111100.0,0.75075043]
[1756829674379,0.2317905,111110.0,111100.0,0.84266642]
[1756829674580,0.2369005,111110.0,111100.0,0.43390399]
[1756829674790,0.0517887,111110.0,111100.0,0.27706399]
[1756829674994,0.17996951,111130.0,111110.0,0.1800018]
[1756829675208,0.02705263,111130.0,111120.0,0.90532384]
[1756829675380,0.02705263,111130.0,111120.0,0.90307402]
[1756829675585,0.02705263,111130.0,111120.0,0.49431159]
[1756829675742,0.02705263,111130.0,111120.0,0.90307402]
[1756829675947,0.00313,111140.0,111130.0,0.1799694]
[1756829676155,0.20779802,111150.0,111140.0,0.17995321]
[1756829676385,0.20977802,111150.0,111140.0,0.15684]
[1756829676570,0.57682652,111150.0,111140.0,0.15684]
[1756829676922,0.57682652,111150.0,111140.0,0.33679321]
[1756829677269,0.57682652,111150.0,111130.0,0.27188539]
[1756829677537,0.17995321,111140.0,111130.0,0.68064782]
[1756829677744,0.18506321,111140.0,111130.0,0.84652812]
[1756829678569,0.18506321,111140.0,111130.0,0.83744782]
[1756829678991,0.18506321,111140.0,111130.0,1.23945782]
[1756829679196,0.18606321,111140.0,111130.0,1.23744782]
[1756829679399,0.18606321,111140.0,111130.0,1.23945782]
[1756829679603,0.18606321,111140.0,111130.0,0.83069539]
[1756829679936,0.18606321,111140.0,111130.0,0.82868539]
[1756829680284,0.18606321,111140.0,111130.0,1.23945782]
[1756829680285,0.001,111140.0,111130.0,1.23945782]
[1756829680692,0.001,111140.0,111130.0,1.26039664]
[1756829680903,0.001,111140.0,111130.0,1.26212664]
[1756829681343,0.001,111140.0,111130.0,0.85163421]
[1756829681518,0.001,111140.0,111130.0,1.26921771]
[1756829682989,0.001,111140.0,111130.0,1.27094771]
[1756829683240,0.001,111140.0,111130.0,1.26921771]
[1756829683966,0.001,111140.0,111130.0,1.11241771]
[1756829684170,0.001,111140.0,111130.0,1.26917771]
[1756829684579,0.18297321,111140.0,111130.0,0.86041528]
[1756829684787,0.18095321,111140.0,111130.0,1.26917771]
[1756829684992,0.001,111140.0,111130.0,1.11241771]
[1756829685225,0.00612,111140.0,111130.0,1.26917771]
[1756829685757,0.00302,111140.0,111130.0,1.26917771]
[1756829685960,0.001,111140.0,111130.0,1.26917771]
[1756829687333,0.001,111140.0,111130.0,1.11241771]
[1756829687537,0.001,111140.0,111130.0,1.26913771]
[1756829687843,0.18297321,111140.0,111130.0,1.09147889]
[1756829688065,0.20576321,111140.0,111130.0,0.83061539]
[1756829688282,0.21088321,111140.0,111130.0,1.23937782]
[1756829688476,0.21088321,111140.0,111130.0,0.49191599]
[1756829688669,0.21088321,111140.0,111130.0,0.64863599]
[1756829689312,0.21088321,111140.0,111130.0,1.24636014]
[1756829689715,0.21088321,111140.0,111130.0,1.23736782]
[1756829690333,0.21088321,111140.0,111130.0,0.82860539]
[1756829690510,0.21088321,111140.0,111130.0,0.49191599]
[1756829690711,0.21088321,111140.0,111130.0,0.64863599]
[1756829691097,0.21088321,111140.0,111130.0,0.83061539]
[1756829691586,0.23793271,111140.0,111130.0,1.23937782]
[1756829692611,0.23793271,111140.0,111130.0,1.24839122]
[1756829693153,0.0528595,111140.0,111130.0,1.24839122]
[1756829693369,0.001,111140.0,111130.0,1.54026004]
[1756829694063,0.001,111140.0,111130.0,1.53849004]
[1756829694499,0.18303808,111150.0,111140.0,0.17995321]
[1756829694673,0.20986808,111150.0,111140.0,0.83731163]
[1756829695086,0.20986808,111150.0,111140.0,0.2718692]
[1756829695284,0.20986808,111150.0,111140.0,0.8285492]
[1756829695717,0.20986808,111150.0,111140.0,1.23731163]
[1756829696303,0.20986808,111150.0,111140.0,0.8285492]
[1756829696557,0.21086808,111150.0,111140.0,0.8285492]
[1756829696748,0.21086808,111150.0,111140.0,0.4305592]
[1756829696969,0.21086808,111150.0,111140.0,0.83932163]
[1756829697207,0.21086808,111150.0,111140.0,1.23731163]
[1756829697414,0.21086808,111150.0,111140.0,0.83731163]
[1756829697622,0.21086808,111150.0,111140.0,0.83714046]
[1756829698046,0.21086808,111150.0,111140.0,0.4285492]
[1756829698263,0.21086808,111150.0,111140.0,0.83714046]
[1756829698979,0.21086808,111150.0,111140.0,0.83915046]
[1756829699131,0.21086808,111150.0,111140.0,0.4285492]
[1756829699321,0.21086808,111150.0,111140.0,0.83714046]
[1756829700008,0.21086808,111150.0,111140.0,0.83915046]
[1756829700453,0.21086808,111150.0,111140.0,0.83714046]
[1756829700902,0.21086808,111150.0,111140.0,0.83915046]
[1756829701362,0.21086808,111150.0,111140.0,0.8285492]
[1756829701594,0.21086808,111150.0,111140.0,1.23714046]
[1756829701847,0.21086808,111150.0,111140.0,0.8285492]
[1756829702096,0.02581,111150.0,111140.0,1.23915046]
[1756829702330,0.02581,111150.0,111140.0,1.64774172]
[1756829702588,0.21086702,111150.0,111140.0,1.23714046]
[1756829702860,0.21086702,111150.0,111140.0,0.64859599]
[1756829703104,0.21086702,111150.0,111140.0,1.05718725]
[1756829703344,0.21086702,111150.0,111140.0,1.23915046]
[1756829703576,0.21086702,111150.0,111140.0,1.23714046]
[1756829703804,0.20776702,111150.0,111140.0,1.23915046]
[1756829704020,0.21086702,111150.0,111140.0,1.23915046]
[1756829706024,0.02581,111150.0,111140.0,1.23915046]
[1756829706247,0.20574702,111150.0,111140.0,1.64774172]
[1756829706445,0.21086702,111150.0,111140.0,1.23915046]
[1756829706867,0.02581,111150.0,111140.0,1.64774172]
[1756829707044,0.02581,111150.0,111140.0,1.24774172]
[1756829708643,0.001,111150.0,111140.0,1.6790018]
[1756829708867,0.001,111150.0,111140.0,1.9482018]
[1756829709076,0.001,111150.0,111140.0,2.0190018]
[1756829709755,0.001,111150.0,111140.0,2.0189218]
[1756829710003,0.0002,111170.0,111160.0,0.20085965]
[1756829710197,0.0002,111170.0,111160.0,1.73854942]
[1756829710428,0.0002,111170.0,111160.0,1.74228942]
[1756829710846,0.0002,111170.0,111160.0,1.58568942]
[1756829711058,0.0002,111170.0,111160.0,2.14228942]
[1756829711279,0.0002,111170.0,111160.0,1.98568942]
[1756829711707,0.0002,111170.0,111160.0,1.57709816]
[1756829711910,0.0002,111170.0,111160.0,1.73365816]
[1756829712115,0.0002,111170.0,111160.0,2.14624942]
[1756829712316,0.0002,111170.0,111160.0,2.1864276]
[1756829712520,0.0002,111170.0,111160.0,2.93501886]
[1756829712729,0.0002,111170.0,111160.0,2.98501886]
[1756829712936,0.0002,111170.0,111160.0,3.80220138]
[1756829713148,0.0002,111170.0,111160.0,3.85220138]
[1756829713320,0.0002,111170.0,111160.0,3.80220138]
[1756829713535,1e-08,111170.0,111160.0,2.48853454]
[1756829713711,1e-08,111170.0,111160.0,2.43853454]
[1756829714115,1e-08,111170.0,111160.0,2.48853454]
[1756829714503,1e-08,111170.0,111160.0,2.08853454]
[1756829714723,1e-08,111170.0,111160.0,1.93197454]
[1756829715159,1e-08,111170.0,111160.0,2.48849454]
[1756829715359,1e-08,111180.0,111170.0,0.30084347]
[1756829715708,1e-08,111180.0,111170.0,1.59921018]
[1756829715919,1e-08,111180.0,111170.0,1.44470018]
[1756829716262,1e-08,111180.0,111170.0,2.00122018]
[1756829716673,1e-08,111180.0,111170.0,1.57619982]
[1756829717338,1e-08,111180.0,111170.0,2.34122018]
[1756829717553,1e-08,111180.0,111170.0,2.61042018]
[1756829718007,1e-08,111180.0,111170.0,2.18539982]
[1756829718253,1e-08,111180.0,111170.0,2.02987982]
[1756829718466,1e-08,111180.0,111170.0,2.13539982]
[1756829718674,1e-08,111180.0,111170.0,2.19139982]
[1756829719011,1e-08,111180.0,111170.0,2.61642018]
[1756829719218,1e-08,111180.0,111170.0,2.62002378]
[1756829720702,0.0002,111220.0,111210.0,0.17983994]
[1756829720911,0.0002,111220.0,111210.0,0.93759511]
[1756829721117,0.0002,111220.0,111210.0,0.93960511]
[1756829721328,0.00548,111220.0,111210.0,1.33960511]
[1756829721538,0.00548,111220.0,111210.0,1.2231718]
[1756829721746,0.00548,111220.0,111210.0,1.3806518]
[1756829722182,0.0002,111220.0,111210.0,1.3806518]
[1756829722840,0.00228,111220.0,111210.0,1.2241718]
[1756829723080,0.00548,111220.0,111210.0,1.3806518]
[1756829723287,0.00548,111220.0,111210.0,1.3786018]
[1756829723494,0.00548,111220.0,111210.0,1.3806118]
[1756829723695,0.0002,111220.0,111210.0,1.3806118]
[1756829724124,0.00548,111220.0,111210.0,1.2241718]
[1756829724582,0.0002,111220.0,111210.0,1.38954092]
[1756829724778,0.00548,111220.0,111210.0,1.38954092]
[1756829725020,0.0002,111220.0,111210.0,1.38954092]
[1756829725232,0.00548,111220.0,111210.0,1.38954092]
[1756829725472,0.0002,111220.0,111210.0,1.38954092]
[1756829726191,0.00548,111220.0,111210.0,1.38954092]
[1756829726583,0.0002,111220.0,111210.0,1.38954092]
[1756829726725,0.0002,111220.0,111210.0,1.65874092]
[1756829727504,0.0002,111220.0,111210.0,2.00047092]
[1756829727707,0.0002,111220.0,111210.0,2.20629128]
[1756829727954,0.0002,111220.0,111210.0,2.05047092]
[1756829728206,0.00548,111220.0,111210.0,1.99870092]
[1756829728387,0.0002,111220.0,111210.0,1.99870092]
[1756829730208,0.0002,111220.0,111210.0,2.00043092]
[1756829730467,0.0002,111220.0,111210.0,1.99870092]
[1756829731128,0.0002,111220.0,111210.0,2.00043092]
[1756829731329,0.0002,111220.0,111210.0,1.99870092]
[1756829731737,0.0002,111220.0,111210.0,1.84230092]
[1756829731969,0.0002,111220.0,111210.0,1.99870092]
[1756829732419,0.0002,111220.0,111210.0,2.00403369]
[1756829733620,0.0002,111220.0,111210.0,2.80230908]
[1756829734157,0.0002,111220.0,111210.0,2.85230908]
[1756829734401,1e-08,111220.0,111210.0,3.80640483]
[1756829734613,1e-08,111220.0,111210.0,3.85640483]
[1756829735006,1e-08,111220.0,111210.0,2.23210908]
[1756829735228,1e-08,111220.0,111210.0,3.45540483]
[1756829735433,0.0002,111240.0,111230.0,0.59074642]
[1756829735651,0.0002,111240.0,111230.0,1.88625295]
[1756829735855,0.0002,111240.0,111230.0,1.88999295]
[1756829736056,0.0002,111240.0,111230.0,1.93826295]
[1756829736265,0.0002,111240.0,111230.0,1.88999295]
[1756829736437,0.0002,111240.0,111230.0,1.78363295]
[1756829736646,0.0002,111240.0,111230.0,1.93999295]
[1756829737702,0.0002,111240.0,111230.0,1.94299295]
[1756829737917,0.0002,111240.0,111230.0,1.93999295]
[1756829738348,0.0002,111240.0,111230.0,1.94222295]
[1756829739151,0.02486,111270.0,111250.0,0.5407141]
[1756829739333,0.02486,111270.0,111260.0,1.70373145]
[1756829739683,0.02486,111270.0,111260.0,1.5225592]
[1756829739890,0.02998,111270.0,111260.0,1.5225592]
[1756829740093,0.02998,111270.0,111260.0,1.6768892]
[1756829740313,0.02486,111270.0,111260.0,1.6788792]
[1756829740645,0.02486,111270.0,111260.0,1.5225592]
[1756829740847,0.02998,111270.0,111260.0,1.6768892]
[1756829741060,0.02998,111270.0,111260.0,1.72028052]
[1756829741708,0.02998,111270.0,111260.0,1.72128052]
[1756829741883,0.02696,111270.0,111260.0,1.56496052]
[1756829742084,0.02696,111270.0,111260.0,1.72128052]
[1756829742296,0.0002,111270.0,111260.0,1.72128052]
[1756829742653,0.00532,111270.0,111260.0,1.71929052]
[1756829743454,0.03009,111270.0,111260.0,1.71929052]
[1756829743657,0.03009,111270.0,111260.0,1.72128052]
[1756829743858,0.03009,111270.0,111260.0,1.72124052]
[1756829744285,0.03009,111270.0,111260.0,1.29465525]
[1756829744488,0.03009,111270.0,111260.0,1.71925052]
[1756829745113,0.02799,111270.0,111260.0,1.72124052]
[1756829745320,0.03009,111270.0,111260.0,1.72124052]
[1756829745528,0.03009,111270.0,111260.0,1.71925052]
[1756829746154,0.02707,111270.0,111260.0,1.72124052]
[1756829746361,0.02497,111270.0,111260.0,1.72124052]
[1756829746561,0.02707,111270.0,111260.0,1.72124052]
[1756829746899,0.03009,111270.0,111260.0,1.72124052]
[1756829747129,0.03009,111270.0,111260.0,1.71925052]
[1756829747332,0.03009,111270.0,111260.0,1.56297052]
[1756829747555,0.03009,111270.0,111260.0,1.29465525]
[1756829747909,0.03009,111270.0,111260.0,1.56297052]
[1756829748114,0.03009,111270.0,111260.0,1.71925052]
[1756829748335,0.03009,111270.0,111260.0,1.2020317]
[1756829748763,0.20983296,111270.0,111260.0,0.59767731]
[1756829748968,0.20983296,111270.0,111260.0,0.93371643]
[1756829749180,0.03009,111270.0,111260.0,1.3583117]
[1756829749386,0.03009,111270.0,111260.0,1.37925052]
[1756829749602,0.03009,111270.0,111260.0,1.22297052]
[1756829749812,0.03009,111270.0,111260.0,0.93371643]
[1756829750012,0.03009,111270.0,111260.0,0.77743643]
[1756829750222,0.03009,111270.0,111260.0,0.93371643]
[1756829750430,0.03009,111270.0,111260.0,1.3583117]
[1756829751578,0.20983296,111270.0,111260.0,0.77743643]
[1756829751790,0.20983296,111270.0,111260.0,0.59767731]
[1756829751994,0.20983296,111270.0,111260.0,0.75395731]
[1756829752423,0.20983296,111270.0,111260.0,0.59767731]
[1756829752624,0.20983296,111270.0,111260.0,0.75395731]
[1756829752833,0.63442823,111270.0,111260.0,0.22064]
[1756829753247,0.63442823,111270.0,111260.0,0.06436]
[1756829753487,0.20983296,111270.0,111260.0,0.06436]
[1756829753693,0.20983296,111270.0,111260.0,0.22064]
[1756829754116,0.20983296,111270.0,111260.0,0.001]
[1756829754117,0.97442823,111270.0,111260.0,0.001]
[1756829754539,0.98072337,111270.0,111260.0,0.15728]
[1756829754722,1.00006153,111270.0,111260.0,0.15728]
[1756829754984,0.66738225,111270.0,111260.0,0.15728]
[1756829755193,1.09197752,111270.0,111260.0,0.15628]
[1756829755794,1.09297752,111270.0,111260.0,0.15628]
[1756829756854,0.17977528,111250.0,111240.0,0.06336]
[1756829757060,0.60437055,111250.0,111240.0,0.06336]
[1756829757267,0.60647055,111250.0,111240.0,0.21964]
[1756829757476,0.97426055,111250.0,111240.0,0.06336]
[1756829757685,0.54966528,111250.0,111240.0,0.21964]
[1756829758307,0.57669161,111250.0,111240.0,0.21964]
[1756829758517,0.57669161,111250.0,111240.0,0.06536]
[1756829758719,0.57669161,111250.0,111240.0,0.21964]
[1756829759126,0.57769161,111250.0,111240.0,0.21964]